Cogmind - Beta 12 @@@ ROGUE MODE // 2023.04.10 @ 22:41:49 Player: Red Box Result: Destroyed by YI-UF0 with YI-UF0's Doublenader Performance ------------- Evolutions (0) 0 Regions Visited (2) 400 Robots Destroyed (22) 110 Value Destroyed (395) 395 Prototype IDs (2) 40 Alien Tech Used (0) 0 Bonus (0) 0 TOTAL SCORE: 945 Bonus ------- None Cogmind --------- Core Integrity 0/250 Matter 300/300 Energy 19/100 System Corruption 2% Temperature Cool (0) Movement Core (700) Ox13 Location -10/Mines Parts ------- > --- POWER (1) -------- (None) > --- PROPULSION (2) --- (None) > --- UTILITY (2) ------ High-capacity Storage Unit > --- WEAPON (2) ------- (None) > --- INVENTORY (20) --- Wheel Compact Wheel Large Matter Pod (87) Improved Terrain Scanner Targeting Computer Authchip [Device] EM Pulse Gun Particle Gun Particle Gun Particle Gun Particle Gun Spread Laser Assault Rifle Light Cannon Rocket Launcher Datajack Mace Peak State ------------ > --- POWER ------------ (None) > --- PROPULSION ------- Wheel Wheel > --- UTILITY ---------- Improved Heat Sink High-capacity Storage Unit > --- WEAPON ----------- Spread Laser Spread Laser > --- INVENTORY -------- Light Treads Wheel Compact Wheel Large Matter Pod Improved Terrain Scanner Targeting Computer Authchip [Device] EM Pulse Gun Particle Gun Particle Gun Particle Gun Particle Gun Spread Laser Spread Laser Assault Rifle Light Cannon Rocket Launcher Datajack Mace [Rating: 13] Favorites ----------- Power Ion Engine Engine Ion Engine Propulsion Wheel Treads Light Treads Leg Aluminum Leg Wheel Wheel Utility Heat Sink Device Heat Sink Storage High-capacity Storage Unit Weapon Spread Laser Energy Gun Spread Laser Ballistic Gun Light Assault Rifle Special Weapon Mining Laser Special Melee Weapon Datajack Build | -11 -10 -10 ------- Run | Jun Mat Min Slots Evolved . | . . . Power . | . . . Propulsion . | . . . Utility . | . . . Weapon . | . . . Parts Attached 28 | 9 15 4 Power 2 | 2 . . Engine 2 | 2 . . Core . | . . . Reactor . | . . . Propulsion 6 | 2 2 2 Treads 1 | . . 1 Leg 2 | 2 . . Wheel 3 | . 2 1 Hover . | . . . Flight . | . . . Utility 9 | 3 5 1 Device 6 | 2 3 1 Storage 3 | 1 2 . Processor . | . . . Hackware . | . . . Protection . | . . . Artifact . | . . . Weapon 11 | 2 8 1 Energy Gun 6 | 1 4 1 Energy Cannon . | . . . Ballistic Gun 2 | 1 1 . Ballistic Cannon . | . . . Launcher . | . . . Special Weapon 1 | . 1 . Impact Weapon . | . . . Slashing Weapon . | . . . Piercing Weapon . | . . . Special Melee Weapon 2 | . 2 . Unidentified Prototypes . | . . . Parts Lost 10 | . . 10 Power 1 | . . 1 Propulsion 4 | . . 4 Utility 2 | . . 2 Weapon 3 | . . 3 Highest Loss Streak 9 | . . 9 To Critical Strikes . | . . . Average Slot Usage (%) 99 | . 99 97 Engine 13 | . 14 13 Leg 8 | . 10 . Wheel 18 | . 16 26 Device 14 | . 14 14 Storage 14 | . 14 14 Energy Gun 24 | . 24 27 Ballistic Gun 2 | . 2 . Naked Turns . | . . . Heaviest Build 52 | 14 52 52 Greatest Support 20 | 20 20 20 Greatest Overweight (x) 5 | 4 2 5 Average Overweight (x) 1 | . 1 2 Largest Inventory Capacity 20 | 8 20 20 Average Capacity 13 | 7 12 20 Most Carried 20 | 7 18 20 Average Carried 11 | 4 10 19 Final Capacity 20 | 8 20 20 Final Carried 18 | 7 18 17 Class Distribution -------------------- 100% | Mutant Dominant Class ---------------- Mutant | -10/Materials Mutant | -10/Mines Resources | -11 -10 -10 ----------- Run | Jun Mat Min Matter Collected 583 | 301 179 103 Remotely . | . . . Salvage Created 508 | 154 258 96 Parts 45 | 9 26 10 Haulers Intercepted . | . . . Recyclers Shooed . | . . . Parts Field Recycled . | . . . Retrieved Matter . | . . . Parts Self-Destructed . | . . . Prevented . | . . . Kills | -11 -10 -10 ------- Run | Jun Mat Min Combat Hostiles Destroyed 15 | . 10 5 Guns 15 | . 10 5 Classes Destroyed 5 | 2 3 . Tunneler 3 | 3 . . Recycler 1 | 1 . . Watcher 3 | . 3 . Swarmer 9 | . 6 3 Grunt 6 | . 4 2 Best Kill Streak 4 | 1 4 3 Combat Bots Only 3 | . 3 3 Max Kills in Single Turn 1 | 1 1 1 Gunslinging . | . . . Exploded . | . . . Melee . | . . . Uniques/NPCs Destroyed . | . . . Combat | -11 -10 -10 -------- Run | Jun Mat Min Damage Taken 908 | 4 158 746 Core 255 | . 38 217 Absorbed by Shields . | . . . Core Remaining (%) 100 | 100 . . Volleys Fired 51 | 11 27 13 Largest 2 | 2 2 2 Hottest 130 | 60 130 130 Shots Fired 97 | 22 50 25 Gun 96 | 22 49 25 Cannon . | . . . Launcher . | . . . Special 1 | . 1 . Kinetic 12 | 11 1 . Thermal 68 | . 43 25 Explosive . | . . . Electromagnetic 17 | 11 6 . Robot Hit Streak 20 | 4 9 20 Robot Miss Streak 11 | 2 11 4 Penetration Max . | . . . Secondary Targets . | . . . Shots Hit Robots 76 | 12 41 23 Core Hits 73 | 6 39 28 Critical Kills . | . . . Critical Parts Destroyed . | . . . Critical Strikes . | . . . Melee Attacks . | . . . Impact . | . . . Slashing . | . . . Piercing . | . . . Sneak Attacks . | . . . Combat Hostiles . | . . . Follow-up Attacks . | . . . Damage Inflicted 905 | 177 416 312 Guns 864 | 138 414 312 Cannons . | . . . Explosions 39 | 39 . . Melee . | . . . Ramming 2 | . 2 . Kinetic 63 | 53 10 . Thermal 701 | 39 350 312 Explosive . | . . . Electromagnetic 139 | 85 54 . Impact . | . . . Slashing . | . . . Piercing . | . . . Highest Corruption 2 | . 2 2 Average Corruption 2 | . 2 2 Corruption Purged . | . . . Corruption Blocked . | . . . Effects 16 | . 10 6 Message Errors 2 | . 2 . Matter Fused 5 | . 2 3 Heat Flow Errors 4 | . 3 1 Energy Discharges 3 | . 2 1 Data Loss (minor) 1 | . 1 . Misfires 1 | . . 1 Overload Shots . | . . . Overflow Damage 9 | 9 . . Projectiles . | . . . Explosions 9 | 9 . . Melee . | . . . Knockbacks . | . . . Impact . | . . . Kinetic . | . . . Secondary . | . . . Self-Inflicted Damage 5 | 4 1 . Shots 1 | 1 . . Rammed 1 | . 1 . Targets Rammed 1 | . 1 . Kicked . | . . . Crushed . | . . . Highest Temperature 335 | 40 335 183 Average Temperature 76 | 20 97 60 Received Heat Transfer 81 | . 54 27 Effects 3 | . 3 . Shutdowns 1 | . 1 . Energy Bleed 1 | . 1 . Matter Decay 1 | . 1 . Siege Activations . | . . . Robots Corrupted . | . . . Combat Hostiles . | . . . Parts Fried . | . . . Impact Corruptions . | . . . Robots Melted . | . . . Combat Hostiles . | . . . Parts Melted . | . . . Heat Transferred 920 | 50 475 395 Parts Sabotaged . | . . . Parts Stolen . | . . . Parts Stripped . | . . . Power Chain Reactions 1 | 1 . . Missiles Intercepted . | . . . Alert | -11 -10 -10 ------- Run | Jun Mat Min Peak Influence 196 | 20 196 156 Initial 46 | . 13 46 Average 80 | 8 71 140 Maximum Alert Level . | . . . Low Security (%) 100 | 100 100 100 Level 1 . | . . . Level 2 . | . . . Level 3 . | . . . Level 4 . | . . . Level 5 . | . . . High Security . | . . . Max Security . | . . . Squads Dispatched 4 | . 4 . Investigation 3 | . 3 . Extermination . | . . . Reinforcement 1 | . 1 . Assault . | . . . Garrison . | . . . Intercept . | . . . Searches Triggered . | . . . Construction Impeded . | . . . Haulers Reinforced . | . . . Active Scanning Responses . | . . . Cargo Convoy Interrupts . | . . . Stealth | -11 -10 -10 --------- Run | Jun Mat Min Distress Signals 1 | . 1 . Communications Jammed . | . . . Distress Signals . | . . . Times Spotted 22 | . 17 5 Peak Tracking Total 6 | . 6 3 Tactical Retreats . | . . . Traps | -11 -10 -10 ------- Run | Jun Mat Min Traps Triggered 3 | . 3 . Indirectly . | . . . Trap Hack Attempts 7 | . 7 . Triggered . | . . . Disarmed 1 | . 1 . Reprogrammed 2 | . 2 . Reused . | . . . Traps Extracted . | . . . Installed . | . . . Triggered . | . . . Machines | -11 -10 -10 ---------- Run | Jun Mat Min Machines Disabled . | . . . Max in Single Turn . | . . . Machines Repaired . | . . . Machines Sabotaged . | . . . Overloaded Fab Kills . | . . . Hacking | -11 -10 -10 --------- Run | Jun Mat Min Machines Accessed 9 | . 9 . Terminals 7 | . 7 . Fabricators . | . . . Repair Stations . | . . . Recycling Units 2 | . 2 . Scanalyzers . | . . . Garrison Access . | . . . Total Hacks 34 | . 34 . Successful 19 | . 19 . Failed 15 | . 15 . Catastrophic 3 | . 3 . Database Lockouts . | . . . Manual 23 | . 23 . Terminals 28 | . 28 . Fabricators . | . . . Repair Stations . | . . . Recycling Units 6 | . 6 . Scanalyzers . | . . . Garrison Access . | . . . Terminal Hacks 7 | . 7 . Robot Analysis 4 | . 4 . Prototype ID Bank 1 | . 1 . Terminal Index 1 | . 1 . Zone Layout 1 | . 1 . Fabricator Hacks . | . . . Repair Station Hacks . | . . . Recycling Unit Hacks 1 | . 1 . Retrieve Components 1 | . 1 . Scanalyzer . | . . . Garrison Access Hacks . | . . . Unauthorized Hacks 11 | . 11 . Terminals 8 | . 8 . Track 1 | . 1 . Assimilate 2 | . 2 . Botnet 4 | . 4 . Operators 1 | . 1 . Fabricators . | . . . Repair Stations . | . . . Recycling Units 3 | . 3 . Reject 1 | . 1 . Mask 1 | . 1 . Tunnel 1 | . 1 . Scanalyzers . | . . . Garrison Access . | . . . Data Cores Recovered . | . . . Used . | . . . Hacking Detections 9 | . 9 . Full Trace Events 1 | . 1 . Feedback Events . | . . . Feedback Blocked . | . . . Robot Schematics Acquired . | . . . Robots Built . | . . . Authchips . | . . . Time . | . . . Total Robot Build Rating . | . . . Part Schematics Acquired . | . . . Parts Built . | . . . Authchips . | . . . Time . | . . . Total Part Build Rating . | . . . Parts Repaired . | . . . Time . | . . . Parts Recycled . | . . . Recycled Matter . | . . . Retrieved Matter . | . . . Retrieved Components 2 | . 2 . Parts Scanalyzed . | . . . Part Schematics Acquired . | . . . Parts Damaged . | . . . Bothacking | -11 -10 -10 ------------ Run | Jun Mat Min Used RIF Installer . | . . . Robots Hacked . | . . . Non-combat . | . . . Combat . | . . . Robot Hacks Applied . | . . . Relay Couplers Released . | . . . Fabnet Peak Effective % . | . . . Robots Rewired . | . . . Allies Hacked . | . . . Hacks Repelled . | . . . Allies | -11 -10 -10 -------- Run | Jun Mat Min Total Allies 1 | . 1 . Largest Group 1 | . 1 1 Highest-Rated Group 10 | . 10 10 Highest-Rated Ally 10 | . 10 10 Total Orders 6 | . 2 4 STAY 3 | . 1 2 FOLLOW 3 | . 1 2 Ally Attacks . | . . . Total Damage . | . . . Kills . | . . . Allies Corrupted . | . . . Allies Melted . | . . . Intel | -11 -10 -10 ------- Run | Jun Mat Min Robot Analysis Total 4 | . 4 . Derelict Logs Recovered 2 | . . 2 Drone Launches . | . . . Drone Recoveries . | . . . Exploration | -11 -10 -10 ------------- Run | Jun Mat Min Turns Passed 2252 | 154 1673 425 Spaces Moved 1360 | 76 983 301 Core 21 | 21 . . Treads . | . . . Legs 388 | 55 333 . Wheels 951 | . 650 301 Hover . | . . . Flight . | . . . Fastest Speed 50 | 50 80 110 Average Speed 110 | 136 108 110 Slowest Speed 250 | 250 120 155 Overloaded Moves . | . . . Propulsion Burnouts . | . . . Robots Hopped . | . . . Cave-ins Triggered . | . . . Exploration Rate (%) 51 | 5 98 52 Regions Visited 2 Branch Regions 1 Pre-discovered Areas 3 | . 1 2 Known Exits Taken . | . . . Unknown Exits Taken 2 | 1 1 . Scrap Searched 2 | . . 2 Spaces Dug 1 | . 1 . Terrain Destroyed 1 | . 1 . Melee . | . . . Projectile 1 | . 1 . AOE . | . . . Terrain Rammed . | . . . Walls Destroyed . | . . . Machines Disabled . | . . . Actions | -11 -10 -10 --------- Run | Jun Mat Min Total 2007 | 102 1534 371 Wait 522 | . 474 48 Move 1358 | 75 982 301 Hop . | . . . Pick Up 26 | 6 16 4 Fast Attach 10 | 7 3 . Attach 5 | . 1 4 Detach 2 | . 2 . Swap 13 | 2 11 . Drop 12 | 1 10 1 Fire 51 | 11 27 13 Melee . | . . . Ram 1 | . 1 . Kick . | . . . Crush . | . . . Escape Stasis . | . . . Rewire . | . . . Trap 7 | . 7 . Miscellaneous . | . . . Route ------- -11/Junkyard -10/Materials (discovered 4 exits: [*Mat x3] / [*Min]) -10/Mines (discovered 1 exit: [*Mat]) History --------- Turn | Location | Event 32 | -11/Junkyard | Discovered new exit (range 15) 155 | -11/Junkyard | Entered Materials 315 | -10/Materials | Build established: Mutant 356 | -10/Materials | Discovered new exit (range 14) 529 | -10/Materials | Discovered new exit (range 9) 916 | -10/Materials | Discovered new exit (range 13) 1252 | -10/Materials | Discovered new exit (range 10) 1828 | -10/Materials | Entered Mines 1828 | -10/Mines | Accompanied by 1 ally 1840 | -10/Mines | Discovered new exit (range 14) 1896 | -10/Mines | YI-UF0 nonchalantly dropped a Grenade Launcher on the ground 1966 | -10/Mines | Learned location of Storage (-7) 1993 | -10/Mines | Received a Rocket Launcher from a helpful Derelict 2056 | -10/Mines | Assembled infested the area 2061 | -10/Mines | Assisted by a Guerilla fighting off Assembled 2233 | -10/Mines | Core integrity fell below 50% 2249 | -10/Mines | Core integrity fell below 20% 2253 | -10/Mines | Destroyed by YI-UF0 with YI-UF0's Doublenader Last Messages --------------- 02227_ U-05 Engineer lays Concrete. 02228_ YI-UF0: "BOOM!" 02228_ Technician 1a destroyed. 02228_ YI-UF0: "WHAAM!" 02228_ U-05 Engineer destroyed. 02230_ The unstable cave ceiling collapses. 02232_ YI-UF0 mumbles something. 02232_ Ion Engine destroyed. 02234_ Heat Sink destroyed. 02236_ Wheel destroyed. 02237_ YI-UF0 mumbles something. 02238_ Wheel destroyed. 02238_ Spread Laser destroyed. 02240_ The unstable cave ceiling collapses. 02244_ System corrupted: Energy discharge (-3). 02245_ The unstable cave ceiling collapses. 02246_ Spread Laser destroyed. 02253_ The unstable cave ceiling collapses. 02253_ Lgt. Treads destroyed. 02253_ Imp. Heat Sink destroyed. Map ----- +----------------------------------------------------+ | | | | | | | | | | | | | | | | | | | | | | | | | ????????????????????????????????????????????? | | ????????????????????????????????????????????? | | ????????????????????????????????????????????? | | ?????????????????????##?????????????????????? | | ????????????????????# ##??####??????????????? | | ???????????????????? ### ##?????????????? | | ???????????????????# # ##????????????? | | ?????????????####### #????????????? | | ?????????????# ############## | | ?????????????# | | ?????######### ## | | ?????# # ################# | | ?????# ###### ## #????????????????? | | ?????# #????# ## @ # #????????????????? | | ????? #???## ###????????????????? | | ????# ##???# #??????????????????? | | ????##?????## ##??????????????????? | | ????????????# * ##???????????????????? | | ????????????# g ## ##????????????????????? | | ????????????# # # ##?????????????????????? | | ????????????# #####??????????????????????? | | ????????????# ##?????????????????????????? | | ????????????# ######????????????????????? | | ????????????#### ###??????????????????? | | ????????######### ##?????????????????? | | ???????? #?# #?????????????????? | | ??????#""" #?# #?????????????????? | | ??????#""" #?## ### #????????????????? | | ??????#""" #??# #??? #???????????????? | | ??????# #??# #???? #??????????????? | | ??????#""" #??# #????? #??????????????? | | ??????#""" #### ##????? ##??????????????? | | ??????#""" ## #??????#???????????????? | | ??????# ## %######?????????????????? | | ??????# %=## %[ #?????????????????? | | ??????##### #=% % #### #?????????????????? | | ??????????# #[## #??????????????????????? | | ??????????# #[## #????????????????##????? | +----------------------------------------------------+ Best States ------------- Heat Dissipation 39 Energy Generation 10 Energy Capacity 250 Matter Stores 300 Matter Capacity 300 Sight Range 16 Terrain Scan Range 16 Terrain Scan Density 10 Evasion (%) 55 Recoil Reduction 1 Authchip Count 1 Item Schematics ----------------- None Robot Schematics ------------------ None Fabricated ------------ Nothing Alien Tech Used ----------------- None Achievements -------------- None Challenges ------------ None Game ------ Seed LightAntigravCutter Manual? 0 Play Time 00:17:43 Cumulative 623.9 hours Start 2023.04.10 @ 00:39:54 End 2023.04.10 @ 22:41:49 Sessions 3 Manual Loads 0 Difficulty Rogue Special Mode None Game No. 425 Rogue 425 Adventurer 0 Explorer 0 Win Type - Total 1 Types 1/0/0/0/0/0/0/0/0 Lore% 70 Gallery% 79 Achievement% 59 Wizard Run 0 Options --------- ASCII 0 Keyboard 0 Movement Mouse Keybinds 0 Fullscreen 1 Font 16/SmallcapsGlow Map View 75x55 Tactical HUD 1 Map Filters NONE Filters NONE Steam 1 RUN: ea6c27ff-7862-48d4-a9c7-64f592c8642b